bitfinex/quotes_BTCUSD_20220101
["timestamp","ask_amount","ask_price","bid_price","bid_amount"]
[1641043544796,0.053164,47037.0,47030.0,0.340181]
[1641043545539,0.053164,47037.0,47034.0,0.28362703]
[1641043545832,0.053164,47037.0,47036.0,0.44964485]
[1641043546032,0.053161,47039.0,47036.0,0.78977785]
[1641043546234,0.053161,47039.0,47037.0,0.328883]
[1641043546931,0.053161,47039.0,47038.0,0.76240699]
[1641043547132,0.053158,47042.0,47038.0,0.59252399]
[1641043547331,0.053158,47042.0,47039.0,0.328867]
[1641043549136,0.053158,47042.0,47038.0,0.25240699]
[1641043549383,0.053158,47042.0,47039.0,0.340181]
[1641043549981,0.053158,47042.0,47038.0,0.25240699]
[1641043550181,0.053158,47042.0,47039.0,0.328787]
[1641043550384,0.14607504,47040.0,47038.0,0.25240699]
[1641043550581,0.053158,47042.0,47038.0,0.25240699]
[1641043550782,0.00010954,47039.0,47038.0,0.25240699]
[1641043550981,0.05327354,47039.0,47038.0,0.25240699]
[1641043551182,0.05327354,47039.0,47032.0,0.00125731]
[1641043551389,0.28056497,47038.0,47025.0,0.00877223]
[1641043551581,0.28065626,47038.0,47025.0,0.00877223]
[1641043551785,7.303e-05,47037.0,47029.0,7.303e-05]
[1641043551983,0.053171,47034.0,47029.0,7.303e-05]
[1641043552183,0.053171,47034.0,47033.0,0.25495966]
[1641043552382,0.053171,47034.0,47033.0,0.59514066]
[1641043552682,0.106333,47039.0,47033.0,0.59514066]
[1641043552881,0.106333,47039.0,47034.0,0.328881]
[1641043553131,9.129e-05,47038.0,47035.0,0.340181]
[1641043553330,9.129e-05,47038.0,47037.0,0.37071441]
[1641043553536,0.1,47047.0,47037.0,0.69955641]
[1641043553730,0.1,47047.0,47044.0,0.27811858]
[1641043553934,0.00021909,47045.0,47044.0,0.27811858]
[1641043554332,0.05337709,47045.0,47044.0,0.27811858]
[1641043554532,0.00021909,47045.0,47044.0,0.27811858]
[1641043554731,0.00021909,47045.0,47044.0,0.61829958]
[1641043555131,0.10152609,47050.0,47045.0,0.32871]
[1641043555329,0.10152609,47050.0,47044.0,0.27811858]
[1641043555530,7.303e-05,47049.0,47044.0,0.27811858]
[1641043555731,0.053152,47047.0,47044.0,0.27811858]
[1641043556633,0.052896,47047.0,47044.0,0.27811858]
[1641043557078,0.052896,47047.0,47045.0,0.34202508]
[1641043558180,0.052896,47047.0,47046.0,0.340181]
[1641043558680,0.052896,47047.0,47044.0,0.27811858]
[1641043559482,0.05217695,47047.0,47044.0,0.27811858]
[1641043563329,0.04717695,47047.0,47044.0,0.27811858]
[1641043565585,0.83988256,47046.0,47044.0,0.27811858]
[1641043566183,0.053154,47045.0,47044.0,0.27811858]
[1641043566384,0.048154,47045.0,47044.0,0.27811858]
[1641043566584,0.048154,47045.0,47029.0,7.303e-05]
[1641043566585,0.388335,47045.0,47029.0,7.303e-05]
[1641043566786,1.16924731,47045.0,47029.0,7.303e-05]
[1641043566983,1.16924731,47045.0,47029.0,0.00029212]
[1641043567187,1.26924731,47045.0,47029.0,0.00029212]
[1641043567386,0.053167,47033.0,47029.0,0.00029212]
[1641043567588,0.053167,47033.0,47030.0,0.25462968]
[1641043568038,0.65090358,47033.0,47031.0,0.00025561]
[1641043568832,0.59773658,47033.0,47031.0,0.00025561]
[1641043569233,0.053164,47035.0,47031.0,0.00025561]
[1641043569234,0.59773658,47034.0,47031.0,0.00025561]
[1641043569433,0.65090058,47035.0,47031.0,0.00025561]
[1641043570735,0.59773658,47033.0,47031.0,0.00025561]
[1641043570934,0.59773658,47034.0,47031.0,0.00025561]
[1641043571536,0.65090058,47035.0,47031.0,0.00025561]
[1641043572784,0.59773658,47035.0,47031.0,0.00025561]
[1641043573083,0.59773658,47035.0,47030.0,0.34988529]
[1641043573685,0.59773658,47038.0,47030.0,0.24988529]
[1641043573885,0.59773658,47038.0,47031.0,0.340181]
[1641043574085,0.57784613,47039.0,47030.0,0.24988529]
[1641043574287,0.57784613,47039.0,47032.0,9.129e-05]
[1641043574487,0.71735693,47041.0,47032.0,9.129e-05]
[1641043574687,0.7172839,47040.0,47038.0,0.24108469]
[1641043575538,7.303e-05,47041.0,47038.0,0.24108469]
[1641043575539,0.7172839,47039.0,47038.0,0.24108469]
[1641043575831,0.83995559,47041.0,47038.0,0.24108469]
[1641043576029,0.89304156,47040.0,47038.0,0.24108469]
[1641043577536,0.87804156,47040.0,47038.0,0.24108469]
[1641043577932,0.83988256,47039.0,47038.0,0.24108469]
[1641043579780,0.87804156,47040.0,47038.0,0.24108469]
[1641043580981,0.038159,47040.0,47038.0,0.24108469]
[1641043581380,0.038159,47040.0,47039.0,0.00118953]
[1641043583134,0.37834,47040.0,47039.0,0.00118953]
[1641043585241,1.21632874,47040.0,47039.0,0.00118953]
[1641043586435,0.87614774,47040.0,47039.0,0.00118953]
[1641043587585,0.87614774,47040.0,47038.0,0.22727422]
[1641043588685,0.340181,47039.0,47038.0,0.22727422]
[1641043588886,0.87614774,47040.0,47038.0,0.22727422]
[1641043589887,1.17816974,47039.0,47038.0,0.22727422]
[1641043590087,0.340181,47039.0,47038.0,0.22727422]
[1641043591130,0.87614774,47040.0,47038.0,0.22727422]
[1641043592531,0.340181,47039.0,47038.0,0.22727422]
[1641043593132,0.87614774,47040.0,47038.0,0.22727422]
[1641043593533,0.340181,47039.0,47038.0,0.22727422]
[1641043594580,1.05378184,47039.0,47038.0,0.22727422]
[1641043595584,0.71860084,47039.0,47038.0,0.22727422]
[1641043595783,1.05895984,47039.0,47038.0,0.22727422]
[1641043596582,0.71860084,47039.0,47038.0,0.22727422]
[1641043597682,0.75675984,47040.0,47038.0,0.22727422]
[1641043599955,0.59890961,47039.0,47038.0,0.22727422]
[1641043600154,0.75675984,47040.0,47038.0,0.22727422]
[1641043602785,0.71860084,47039.0,47038.0,0.22727422]
[1641043603186,0.75675984,47040.0,47038.0,0.22727422]
[1641043604990,0.63945482,47039.0,47028.0,0.00654398]
[1641043605188,0.053171,47034.0,47028.0,0.00654398]
[1641043605388,0.053171,47034.0,47029.0,0.00014606]
[1641043605940,0.053171,47034.0,47032.0,0.33146009]
[1641043606338,0.053171,47034.0,47033.0,7.303e-05]
[1641043607340,0.65132314,47034.0,47033.0,7.303e-05]
[1641043608943,0.59815214,47034.0,47033.0,7.303e-05]
[1641043609145,0.59815214,47035.0,47033.0,7.303e-05]
[1641043610794,0.59815214,47036.0,47033.0,7.303e-05]
[1641043611595,0.71778257,47038.0,47033.0,7.303e-05]
[1641043611596,0.65131514,47037.0,47033.0,7.303e-05]
[1641043612194,0.59815214,47036.0,47033.0,7.303e-05]
[1641043612597,0.59815214,47037.0,47033.0,7.303e-05]
[1641043613134,0.053165,47036.0,47033.0,7.303e-05]
[1641043617685,0.59815214,47034.0,47033.0,7.303e-05]
[1641043617884,0.65132214,47034.0,47033.0,7.303e-05]
[1641043618891,0.05317,47034.0,47033.0,7.303e-05]
[1641043619890,0.65112936,47034.0,47033.0,7.303e-05]
[1641043620552,0.05317,47034.0,47033.0,7.303e-05]
[1641043620745,0.05440424,47034.0,47033.0,7.303e-05]
[1641043620942,1.11254581,47034.0,47033.0,7.303e-05]
[1641043621345,0.39476324,47034.0,47033.0,7.303e-05]
[1641043622844,0.67866327,47034.0,47033.0,7.303e-05]
[1641043623245,1.51665201,47034.0,47033.0,7.303e-05]
[1641043626090,1.60337049,47034.0,47033.0,7.303e-05]
[1641043626489,1.23093114,47034.0,47033.0,7.303e-05]
[1641043626892,1.21393889,47034.0,47033.0,7.303e-05]
[1641043627390,1.21393889,47034.0,47033.0,0.00126271]
[1641043627591,0.37777099,47034.0,47033.0,0.00126271]
[1641043629031,1.21393889,47034.0,47033.0,0.00126271]
[1641043630530,1.58637012,47034.0,47033.0,0.00126271]
[1641043631331,1.21382351,47034.0,47033.0,0.00126271]
[1641043633097,0.37777099,47034.0,47033.0,0.00126271]
[1641043633694,1.15764034,47034.0,47033.0,0.00126271]
[1641043633896,1.30764034,47034.0,47033.0,0.00126271]
[1641043634095,2.22085047,47034.0,47033.0,0.00126271]
[1641043634295,0.340359,47030.0,47028.0,0.00581991]
[1641043634498,0.74159325,47029.0,47028.0,0.00438991]
[1641043634696,1.02104478,47029.0,47028.0,0.00372991]
[1641043634895,1.02104478,47029.0,47028.0,0.00339991]
[1641043635095,1.02104478,47029.0,47028.0,0.00262991]
[1641043635295,1.02104478,47029.0,47021.0,0.00211]
[1641043635296,0.79,47028.0,47023.0,0.00855235]
[1641043635553,0.850359,47024.0,47023.0,0.00712235]
[1641043635740,1.00476723,47024.0,47023.0,0.00602235]
[1641043635942,1.58495472,47024.0,47023.0,0.00477493]
[1641043636142,1.58495472,47024.0,47023.0,0.00323493]
[1641043636341,0.810359,47022.0,47021.0,0.00112]
[1641043636543,0.4,47021.0,47020.0,0.00013]
[1641043636741,0.34163332,47019.0,47017.0,0.00011]
[1641043636941,0.08515168,47018.0,47016.0,0.00011]
[1641043637144,0.340359,47017.0,47015.0,0.00033]
[1641043637343,0.340359,47017.0,47014.0,0.00011]
[1641043637543,0.340359,47017.0,47016.0,0.00012781]
[1641043637743,0.68407481,47017.0,47016.0,0.00012781]
[1641043637942,0.68456448,47017.0,47016.0,0.00012781]
[1641043638347,0.79219733,47017.0,47013.0,0.00022]
[1641043638543,0.00048967,47014.0,47013.0,0.00022]
[1641043638745,0.34084867,47014.0,47013.0,0.00022]
[1641043639388,0.34084867,47014.0,47013.0,0.27298239]
[1641043639587,0.00048967,47014.0,47013.0,0.00022]
[1641043639790,0.34084867,47014.0,47013.0,0.00022]
[1641043640489,0.61182579,47014.0,47013.0,0.00022]
[1641043641792,0.71182579,47014.0,47013.0,0.00022]
[1641043642191,0.61182579,47014.0,47013.0,0.00022]
[1641043642395,0.34084867,47014.0,47013.0,0.00022]
[1641043642592,0.61650559,47014.0,47013.0,0.00022]
[1641043643049,0.34084867,47014.0,47013.0,0.00022]
[1641043643443,0.61743837,47014.0,47013.0,0.00022]
[1641043643742,0.34084867,47014.0,47013.0,0.00022]
[1641043644543,0.61355011,47014.0,47013.0,0.00022]
[1641043644742,0.34084867,47014.0,47013.0,0.00022]
[1641043645143,0.61283335,47014.0,47013.0,0.00022]
[1641043645846,0.34084867,47014.0,47013.0,0.00022]
[1641043646043,0.61605778,47014.0,47013.0,0.00022]
[1641043646890,0.34084867,47014.0,47013.0,0.00022]
[1641043647497,0.01,47020.0,47014.0,0.340359]
[1641043647692,0.06909,47022.0,47015.0,0.2954754]
[1641043647894,0.06909,47022.0,47020.0,0.28140041]
[1641043648093,9.129e-05,47021.0,47020.0,0.28140041]
[1641043648291,9.129e-05,47021.0,47020.0,0.62175941]
[1641043649792,9.129e-05,47021.0,47020.0,0.97272066]
[1641043649995,9.129e-05,47021.0,47020.0,0.97393005]
[1641043651652,1.29e-06,47021.0,47020.0,0.74252964]
[1641043651854,1.29e-06,47021.0,47020.0,2.03824896]
[1641043652250,1.29e-06,47021.0,47020.0,2.09141796]
[1641043652756,0.01760641,47044.0,47035.0,0.64040249]
[1641043652951,0.01760641,47044.0,47040.0,0.00128094]
[1641043653153,0.00040168,47043.0,47040.0,0.00128094]
[1641043653351,0.00040168,47043.0,47040.0,0.05442994]
[1641043653553,0.00038342,47042.0,47040.0,0.05442994]
[1641043653951,0.01760641,47044.0,47041.0,0.340359]
[1641043654152,0.01760641,47044.0,47042.0,0.27379522]
[1641043654400,0.00040168,47043.0,47042.0,0.27379522]
[1641043654603,0.00040168,47043.0,47042.0,0.61415422]
[1641043655199,0.00040168,47043.0,47042.0,0.60708033]
[1641043655402,0.00040168,47043.0,47042.0,0.60721045]
[1641043655602,0.00040168,47043.0,47042.0,0.340359]
[1641043656000,0.00040168,47043.0,47042.0,0.02087328]
[1641043656399,0.00040168,47043.0,47042.0,0.36123228]
[1641043657302,0.00040168,47043.0,47042.0,0.340359]
[1641043657502,0.00040168,47043.0,47039.0,0.28452449]
[1641043657905,0.00038342,47042.0,47039.0,0.28452449]
[1641043658139,0.00038342,47042.0,47040.0,0.340359]
[1641043658338,0.00036516,47041.0,47040.0,0.340359]
[1641043658941,0.00036516,47041.0,47040.0,0.35919155]
[1641043659940,0.00036516,47041.0,47040.0,0.37817678]
[1641043660141,0.00036516,47041.0,47040.0,0.35934423]
[1641043660943,0.00036516,47041.0,47040.0,0.37741311]
[1641043661892,0.00036516,47041.0,47040.0,0.340359]
[1641043662091,0.00036516,47041.0,47040.0,0.36006076]
[1641043663095,0.00036516,47041.0,47040.0,0.3803001]
[1641043663292,0.00036516,47041.0,47040.0,0.36059834]
[1641043664095,0.00036516,47041.0,47040.0,0.38208828]
[1641043664298,0.00036516,47041.0,47040.0,0.36184894]
[1641043665098,0.00036516,47041.0,47040.0,0.66241089]
[1641043665298,0.00036516,47041.0,47040.0,0.64247589]
[1641043666138,0.00036516,47041.0,47040.0,0.65505436]
[1641043666338,0.0305949,47044.0,47041.0,0.52]
[1641043666539,0.0305949,47044.0,47043.0,0.3181367]
[1641043666838,0.0305949,47044.0,47043.0,0.6584707]
[1641043666839,0.01761503,47044.0,47043.0,0.6584707]
[1641043667638,0.01761503,47044.0,47043.0,0.340334]
[1641043668042,0.01761503,47044.0,47043.0,0.36136865]
[1641043668739,0.01761503,47044.0,47043.0,0.35846904]
[1641043668941,0.01761503,47044.0,47043.0,0.62706178]
[1641043669141,0.01707571,47044.0,47043.0,0.37983847]
[1641043669393,0.01707571,47044.0,47043.0,0.35880382]
[1641043669994,0.01707571,47044.0,47043.0,0.65427922]
[1641043670195,0.01707571,47044.0,47043.0,0.67670911]
[1641043670393,0.01707571,47044.0,47043.0,0.65533968]
[1641043670795,0.01707571,47044.0,47043.0,0.35986428]
[1641043671098,0.01707571,47044.0,47043.0,0.37836931]
[1641043671296,0.01707571,47044.0,47043.0,0.72997995]
[1641043671696,0.01707571,47044.0,47043.0,0.83625695]
[1641043671895,0.00877732,47050.0,47043.0,0.83625695]
[1641043672096,0.00877732,47050.0,47049.0,0.32324697]
[1641043672296,0.00877732,47050.0,47049.0,0.66063597]
[1641043672496,0.00377732,47050.0,47049.0,0.66063597]
[1641043672696,0.00377732,47050.0,47049.0,0.93768839]
[1641043672899,0.00377732,47050.0,47049.0,0.99082539]
[1641043673143,0.00377732,47050.0,47049.0,0.73401597]
[1641043673342,0.00377732,47050.0,47049.0,0.67962399]
[1641043674142,0.00377732,47050.0,47049.0,0.6987319]
[1641043674342,0.053146,47056.0,47049.0,0.6784889]
[1641043674542,0.42143968,47055.0,47049.0,0.3410999]
[1641043674743,0.00023735,47054.0,47049.0,0.3410999]
[1641043675042,0.00021909,47053.0,47049.0,0.36083949]
[1641043675342,0.00020084,47052.0,47049.0,0.34173158]
[1641043675741,0.00018258,47051.0,47049.0,0.34173158]
[1641043676144,0.00016432,47050.0,47049.0,0.34173158]
[1641043676647,0.3426008,47055.0,47049.0,0.34173158]
[1641043676889,0.3426008,47055.0,47049.0,0.34063881]
[1641043677090,7.303e-05,47054.0,47050.0,0.26440263]
[1641043678291,7.303e-05,47054.0,47049.0,0.34378146]
[1641043678692,7.303e-05,47054.0,47050.0,0.27984258]
[1641043679492,7.303e-05,47054.0,47049.0,0.34505799]
[1641043679692,7.303e-05,47054.0,47050.0,0.340334]
[1641043681248,7.303e-05,47054.0,47050.0,0.36082543]
[1641043681849,7.303e-05,47054.0,47050.0,0.62612342]
[1641043682048,7.303e-05,47054.0,47050.0,0.36082543]
[1641043682250,7.303e-05,47054.0,47050.0,0.38049443]
[1641043682451,7.303e-05,47054.0,47050.0,0.64587655]
[1641043682650,7.303e-05,47054.0,47050.0,0.60571612]
[1641043682851,0.59349093,47053.0,47050.0,0.60571612]
[1641043683051,0.59349093,47053.0,47050.0,0.26538212]
[1641043683251,0.59349093,47053.0,47049.0,0.32326852]
[1641043683453,0.59349093,47053.0,47049.0,0.32199199]
[1641043683654,0.59349093,47053.0,47050.0,0.26600023]
[1641043683956,0.59349093,47053.0,47050.0,0.01870955]
[1641043684153,0.59349093,47053.0,47050.0,0.28273096]
[1641043684396,0.59349093,47053.0,47050.0,0.01870955]
[1641043684794,0.59349093,47053.0,47050.0,0.28591972]
[1641043684994,0.59349093,47053.0,47050.0,0.28560346]
[1641043685196,0.59349093,47053.0,47050.0,0.01870955]
[1641043685394,0.59349093,47053.0,47049.0,0.3434222]
[1641043685594,0.59349093,47053.0,47050.0,0.26991442]
[1641043685797,0.59349093,47053.0,47049.0,0.3434222]
[1641043686195,0.59349093,47053.0,47050.0,0.2653825]
[1641043686396,0.59349093,47053.0,47050.0,0.2644423]
[1641043686698,0.59349093,47053.0,47049.0,0.34147068]
[1641043686898,0.59349093,47053.0,47050.0,0.26676142]
[1641043687096,0.59349093,47053.0,47049.0,0.34147068]
[1641043687296,0.59349093,47053.0,47049.0,0.36122705]
[1641043688139,0.59349093,47053.0,47049.0,0.32199199]
[1641043688341,0.59349093,47053.0,47049.0,0.3431259]
[1641043689040,0.59349093,47052.0,47049.0,0.3431259]
[1641043689438,0.59356396,47054.0,47049.0,0.36356025]
[1641043689638,0.59356396,47054.0,47049.0,0.34242634]
[1641043690244,0.59356396,47054.0,47049.0,0.36131602]
[1641043690439,0.59356396,47054.0,47049.0,0.34088167]
[1641043690640,7.303e-05,47054.0,47049.0,0.34088167]
[1641043691240,7.303e-05,47054.0,47049.0,0.35961984]
[1641043691443,7.303e-05,47054.0,47049.0,0.34073016]
[1641043692494,7.303e-05,47054.0,47049.0,0.3422049]
[1641043693296,7.303e-05,47054.0,47049.0,0.36047377]
[1641043693495,7.303e-05,47054.0,47049.0,0.34026086]
[1641043694198,7.303e-05,47054.0,47050.0,0.26624161]
[1641043696050,7.303e-05,47054.0,47050.0,0.26665846]
[1641043696247,7.303e-05,47054.0,47050.0,0.26671676]
[1641043696448,7.303e-05,47054.0,47050.0,0.26602221]
[1641043696646,7.303e-05,47054.0,47049.0,0.3935069]
[1641043697248,7.303e-05,47054.0,47049.0,0.41206926]
[1641043697448,7.303e-05,47054.0,47049.0,0.39369335]
[1641043698048,7.303e-05,47054.0,47049.0,0.39497333]
[1641043698248,7.303e-05,47054.0,47051.0,0.053137]
[1641043698652,7.303e-05,47054.0,47049.0,0.34396968]
[1641043698853,7.303e-05,47054.0,47049.0,0.3426897]
[1641043699294,7.303e-05,47054.0,47049.0,0.36227788]
[1641043699495,7.303e-05,47054.0,47049.0,0.34158017]
[1641043699897,7.303e-05,47054.0,47049.0,0.01958818]
[1641043700200,0.340334,47053.0,47049.0,0.01958818]
[1641043700396,0.30612614,47052.0,47049.0,0.04031101]
[1641043700599,0.340334,47051.0,47049.0,0.04031101]
[1641043700795,0.30431034,47050.0,47039.0,0.0047]
[1641043700995,0.30431034,47050.0,47035.0,0.24657333]
[1641043701195,0.30431034,47050.0,47040.0,0.00018258]
[1641043701196,0.106317,47047.0,47040.0,0.00018258]
[1641043701796,0.340334,47046.0,47040.0,0.00018258]
[1641043702194,0.61365226,47046.0,47040.0,0.00018258]
[1641043702595,0.59349093,47045.0,47040.0,0.00018258]
[1641043702795,0.053159,47044.0,47040.0,0.00018258]
[1641043703043,0.59349093,47044.0,47040.0,0.00018258]
[1641043703642,0.59349093,47045.0,47040.0,0.00018258]
[1641043704641,0.59349093,47045.0,47043.0,0.25939042]
[1641043705045,0.59349093,47045.0,47044.0,0.00010955]
[1641043705242,0.59349093,47049.0,47044.0,0.00010955]
[1641043706895,0.59349093,47048.0,47044.0,0.00010955]
[1641043708799,0.59349093,47049.0,47044.0,0.00010955]
[1641043709198,0.59349093,47046.0,47044.0,0.00010955]
[1641043709800,0.59349093,47048.0,47044.0,0.00010955]
[1641043710204,0.59349093,47048.0,47045.0,0.00118937]
[1641043710644,0.59349093,47049.0,47046.0,7.303e-05]
[1641043710845,0.59349093,47048.0,47046.0,7.303e-05]
[1641043711643,0.008609,47048.0,47046.0,7.303e-05]
[1641043713042,0.008609,47048.0,47046.0,0.05321503]
[1641043714601,0.008609,47048.0,47046.0,7.303e-05]
[1641043715602,0.008609,47048.0,47047.0,0.24118932]
[1641043715802,0.008609,47048.0,47047.0,0.00118932]
[1641043716204,0.008609,47048.0,47047.0,0.00029431]
[1641043720860,0.00832583,47048.0,47047.0,0.00029431]
[1641043721059,0.00832583,47048.0,47046.0,0.05321403]
[1641043721663,0.59349093,47052.0,47046.0,0.05321403]
[1641043721899,0.59349093,47052.0,47051.0,0.26798985]
[1641043723499,0.59349093,47053.0,47051.0,0.26798985]
[1641043724601,0.60209993,47053.0,47051.0,0.26798985]
[1641043725203,0.59349093,47052.0,47051.0,0.26798985]
[1641043726045,0.59058412,47052.0,47051.0,0.26798985]
[1641043726644,0.008609,47053.0,47051.0,0.26798985]
[1641043727445,0.72079812,47053.0,47051.0,0.26798985]
[1641043728446,0.71963768,47053.0,47051.0,0.26798985]
[1641043729991,0.71963768,47053.0,47051.0,0.32112585]
[1641043730595,0.71963768,47053.0,47051.0,0.26798985]
[1641043736046,0.71218912,47053.0,47051.0,0.26798985]
[1641043737199,0.83310423,47053.0,47051.0,0.26798985]
[1641043739102,0.71448281,47053.0,47051.0,0.26798985]
[1641043739704,1.17570503,47055.0,47052.0,1.24478814]
[1641043739905,1.17570503,47055.0,47052.0,1.24605223]
[1641043740106,0.9385384,47055.0,47054.0,0.340334]
[1641043740304,0.9385384,47055.0,47053.0,0.05313]
[1641043740558,0.34269209,47055.0,47054.0,1.125]
[1641043740751,0.34269209,47055.0,47054.0,0.340334]
[1641043740954,0.34269209,47055.0,47053.0,0.05433121]
[1641043741352,7.303e-05,47054.0,47053.0,0.05433121]
[1641043741949,7.303e-05,47054.0,47053.0,0.33555934]
[1641043742150,7.303e-05,47054.0,47053.0,0.67589334]
[1641043742550,7.303e-05,47054.0,47053.0,0.6977015]
[1641043743552,7.303e-05,47054.0,47053.0,0.71683519]
[1641043743754,7.303e-05,47054.0,47053.0,0.69502703]
[1641043744594,7.303e-05,47054.0,47053.0,0.71398466]
[1641043744795,7.303e-05,47054.0,47053.0,0.69485097]
[1641043746195,7.303e-05,47054.0,47053.0,0.69548267]
[1641043746596,7.303e-05,47054.0,47053.0,0.71378162]
[1641043746796,7.303e-05,47054.0,47053.0,0.69419229]
[1641043746996,7.303e-05,47054.0,47053.0,0.69538144]
[1641043747602,7.303e-05,47054.0,47053.0,0.71373634]
[1641043747798,7.303e-05,47054.0,47053.0,0.69543739]
[1641043748648,7.303e-05,47054.0,47053.0,0.71715687]
[1641043748848,7.303e-05,47054.0,47053.0,0.69880197]
[1641043749650,7.303e-05,47054.0,47053.0,0.71905786]
[1641043750052,0.29267383,47055.0,47054.0,0.330493]
[1641043750254,0.29267383,47055.0,47054.0,0.60959065]
[1641043751657,0.29267383,47055.0,47054.0,0.63016059]
[1641043752503,0.29267383,47055.0,47054.0,0.63134972]
[1641043753303,0.29267383,47055.0,47054.0,0.65238098]
[1641043753503,0.29267383,47055.0,47054.0,0.63181104]
[1641043753703,0.29267383,47055.0,47054.0,0.65144366]
[1641043754003,0.29267383,47055.0,47054.0,0.6304124]
[1641043754807,0.29267383,47055.0,47054.0,0.65002306]
[1641043755003,0.29267383,47055.0,47054.0,0.35129279]
[1641043755751,0.29267383,47055.0,47054.0,0.36980222]
[1641043755951,0.29267383,47055.0,47054.0,0.35019156]
[1641043756452,0.29267383,47055.0,47054.0,0.61550272]
[1641043756854,0.29267383,47055.0,47054.0,0.37118385]
[1641043757052,0.29267383,47055.0,47054.0,0.35267442]
[1641043757851,0.29267383,47055.0,47054.0,0.37208064]
[1641043758052,0.29267383,47055.0,47054.0,0.35108835]
[1641043758252,0.29267383,47055.0,47054.0,0.61489033]
[1641043758852,0.29267383,47055.0,47054.0,0.63327859]
[1641043759052,0.29267383,47055.0,47054.0,0.61387237]
[1641043760505,0.29267383,47055.0,47054.0,0.61467474]
[1641043760703,0.29267383,47055.0,47054.0,0.63305742]
[1641043761003,0.29267383,47055.0,47054.0,1.73886679]
[1641043761807,0.24791383,47055.0,47054.0,1.73886679]
[1641043762009,0.23791383,47055.0,47054.0,0.61386679]
[1641043762406,0.23791383,47055.0,47054.0,0.63270379]
[1641043762606,0.23791383,47055.0,47054.0,0.61432111]
[1641043762805,0.23791383,47055.0,47054.0,0.63354213]
[1641043763053,0.23791383,47055.0,47054.0,0.61470513]
[1641043763848,0.23791383,47055.0,47054.0,0.6345592]
[1641043764046,0.23791383,47055.0,47054.0,0.61533818]
[1641043765450,0.23791383,47055.0,47054.0,0.6359465]
[1641043765651,0.23791383,47055.0,47054.0,0.61609243]
[1641043766550,0.23791383,47055.0,47054.0,0.6135785]
[1641043766793,0.23791383,47055.0,47054.0,0.63322233]
[1641043766994,0.23791383,47055.0,47054.0,0.61512794]
[1641043767996,0.23791383,47055.0,47054.0,0.36956243]
[1641043768195,0.23791383,47055.0,47054.0,0.3499186]
[1641043768796,0.23791383,47055.0,47054.0,0.37104397]
[1641043768996,0.23791383,47055.0,47054.0,0.0223145]
[1641043769998,0.23791383,47055.0,47054.0,0.00118913]
[1641043770200,0.57824783,47055.0,47054.0,0.00118913]
[1641043771050,0.7238332,47055.0,47054.0,0.00118913]
[1641043771251,1.43832509,47055.0,47054.0,0.00118913]
[1641043771650,0.7238332,47055.0,47054.0,0.00118913]
[1641043771851,1.93195822,47055.0,47054.0,0.00118913]
[1641043772253,0.7238332,47055.0,47054.0,0.00118913]
[1641043772653,1.93195822,47055.0,47054.0,0.00118913]
[1641043772852,0.7238332,47055.0,47054.0,0.00118913]
[1641043773353,1.93195822,47055.0,47054.0,0.00118913]
[1641043774596,1.78637285,47055.0,47054.0,0.00118913]
[1641043776297,1.44603885,47055.0,47054.0,0.00118913]
[1641043776698,0.23791383,47055.0,47054.0,0.00118913]
[1641043776900,1.0685386,47055.0,47054.0,0.00118913]
[1641043777098,0.95018905,47055.0,47054.0,0.00118913]
[1641043777698,0.83121134,47055.0,47054.0,0.00118913]
[1641043778548,0.57824783,47055.0,47054.0,0.00118913]
[1641043778946,1.17154534,47055.0,47054.0,0.00118913]
[1641043779949,0.57824783,47055.0,47054.0,0.00118913]
[1641043780350,1.78636367,47055.0,47054.0,0.00118913]
[1641043789995,1.40680507,47055.0,47054.0,0.00118913]
[1641043790200,0.57824783,47055.0,47054.0,0.00118913]
[1641043790399,1.78634244,47055.0,47054.0,0.00118913]
[1641043790795,0.57824783,47055.0,47054.0,0.00118913]
[1641043792697,0.23791383,47055.0,47054.0,0.00118913]
[1641043793551,0.23791383,47055.0,47054.0,0.29131922]
[1641043794754,0.83006162,47055.0,47054.0,0.29131922]
[1641043795557,0.83006162,47055.0,47054.0,0.00118913]
[1641043796356,0.57824783,47055.0,47054.0,0.00118913]
[1641043796800,0.23791383,47055.0,47054.0,0.00118913]
[1641043798400,0.87395607,47055.0,47054.0,0.00118913]
[1641043798600,0.57824783,47055.0,47054.0,0.00118913]
[1641043798799,0.57824783,47055.0,47054.0,8.913e-05]
[1641043799001,0.57824783,47055.0,47049.0,0.008846]
[1641043799002,0.05,47054.0,47049.0,0.008846]
[1641043799201,0.05439456,47050.0,47049.0,0.008846]
[1641043799402,0.39472856,47050.0,47049.0,0.008846]
[1641043799800,1.22136195,47050.0,47049.0,0.008846]
[1641043800200,1.22136195,47050.0,47040.0,0.33872373]
[1641043800404,0.88102795,47050.0,47040.0,0.33872373]
[1641043800690,0.59041017,47046.0,47040.0,0.33872373]
[1641043801089,0.59041017,47048.0,47044.0,0.0088461]
[1641043801888,0.10750276,47054.0,47044.0,0.0088461]
[1641043801889,0.59041017,47049.0,47044.0,0.0088461]
[1641043802288,0.76163921,47051.0,47048.0,0.30228925]
[1641043802689,0.70849221,47050.0,47048.0,0.30228925]
[1641043803292,0.70849221,47050.0,47048.0,0.32215298]
[1641043803494,0.76163921,47051.0,47048.0,0.32215298]
[1641043803891,0.70849221,47051.0,47048.0,0.32215298]
[1641043804095,0.70849221,47051.0,47048.0,0.34362833]
[1641043804299,0.70849221,47051.0,47048.0,0.3237646]
[1641043805298,0.70849221,47051.0,47048.0,0.34265677]
[1641043805499,0.70849221,47051.0,47048.0,0.32118142]
[1641043805900,0.82663339,47053.0,47048.0,0.32118142]
[1641043805901,0.70849221,47053.0,47050.0,0.00126359]
[1641043806299,0.23791383,47055.0,47050.0,0.00126359]
[1641043806700,0.23791383,47055.0,47052.0,0.33321726]
[1641043806901,0.23791383,47055.0,47052.0,0.38635026]
[1641043807102,0.23791383,47055.0,47053.0,0.54221075]
[1641043807301,0.23791383,47055.0,47053.0,0.27955933]
[1641043808752,0.70849221,47054.0,47053.0,0.27955933]
[1641043809350,0.70849221,47054.0,47053.0,0.39558743]
[1641043810351,0.23791383,47055.0,47053.0,0.41746566]
[1641043811355,0.23791383,47055.0,47053.0,0.4355581]
[1641043811550,0.23791383,47055.0,47053.0,0.41367987]
[1641043812004,0.71144544,47054.0,47053.0,0.41367987]
[1641043812207,0.71144544,47054.0,47053.0,0.43252055]
[1641043812403,0.71144544,47054.0,47053.0,0.41442811]
[1641043813206,0.71144544,47054.0,47053.0,0.4344373]
[1641043813405,0.71144544,47054.0,47053.0,0.62559662]
[1641043813606,0.71144544,47054.0,47053.0,0.34603729]
[1641043814206,0.71144544,47054.0,47053.0,0.36635786]
[1641043814405,0.71144544,47054.0,47053.0,0.34634867]
[1641043815207,0.71144544,47054.0,47053.0,0.3677738]
[1641043815410,0.71144544,47054.0,47053.0,0.34745323]
[1641043815651,0.28870725,47054.0,47053.0,0.34745323]
[1641043816250,0.28870725,47054.0,47053.0,0.36641854]
[1641043816451,0.28041383,47055.0,47053.0,0.34499341]
[1641043816851,0.28041383,47055.0,47053.0,0.28697936]
[1641043817053,0.28041383,47055.0,47054.0,0.05801405]
[1641043817250,0.28041383,47055.0,47054.0,0.38210935]